fUST/lending_fUST_20260124
["ID","MTS","AMOUNT","RATE_DAILY","PERIOD"]
[403190990,1769260805774,150.6,0.000108,2]
[403190991,1769260806321,150.6,0.000111,2]
[403190992,1769260806872,150.6,0.000114,2]
[403190993,1769260807683,150.6,0.000116,2]
[403190994,1769260807997,150.6,0.000119,2]
[403190995,1769260809505,150.0,0.00011848,2]
[403190996,1769260809672,150.0,0.00011985,2]
[403190997,1769260810024,150.0,0.00011848,2]
[403190998,1769260810169,150.0,0.00011985,2]
[403190999,1769260811273,201.4653447,0.00011848,2]
[403191000,1769260811653,500.0,0.00011848,2]
[403191001,1769260811689,150.0,0.00011848,2]
[403191002,1769260811810,500.0,0.00011985,2]
[403191003,1769260811842,150.0,0.00011985,2]
[403191004,1769260812254,500.0,0.00011848,2]
[403191005,1769260812358,150.0,0.00011848,2]
[403191006,1769260812414,500.0,0.00011985,2]
[403191007,1769260812509,150.0,0.00011985,2]
[403191008,1769260812923,500.0,0.00011848,2]
[403191009,1769260813091,500.0,0.00011985,2]
[403191010,1769260813241,500.0,0.00011848,2]
[403191011,1769260813345,500.0,0.00011848,2]
[403191012,1769260813399,500.0,0.00011985,2]
[403191013,1769260813509,500.0,0.00011985,2]
[403191014,1769260813651,150.0,0.00011848,2]
[403191015,1769260813806,200.64894392,0.00011985,2]
[403191016,1769260814104,500.0,0.00011848,2]
[403191017,1769260814264,500.0,0.00011985,2]
[403191018,1769260814724,500.0,0.00011848,2]
[403191019,1769260814759,150.0,0.00011848,2]
[403191020,1769260814798,500.0,0.00011985,2]
[403191021,1769260814835,150.0,0.00011985,2]
[403191022,1769260815689,150.0,0.00011848,2]
[403191023,1769260815798,500.0,0.00011848,2]
[403191024,1769260815948,500.0,0.00011985,2]
[403191025,1769260816053,150.0,0.00011985,2]
[403191026,1769260817172,500.0,0.00011848,2]
[403191027,1769260817313,500.0,0.00011985,2]
[403191028,1769260818174,175.93291173,0.00011848,2]
[403191039,1769260860350,982.5113883,0.00011112,2]
[403191041,1769260877230,1648.49,0.00011626,2]
[403191046,1769260887997,500.0,0.00011847,2]
[403191047,1769260888154,500.0,0.00011984,2]
[403191048,1769260888380,200.0,0.00011847,2]
[403191050,1769260888628,500.0,0.00011847,2]
[403191051,1769260888782,500.0,0.00011984,2]
[403191052,1769260889019,162.26278883,0.00011847,2]
[403191077,1769260956565,1627.51,0.00011552,2]
[403191092,1769261036607,1606.79,0.00011713,2]
[403191098,1769261117177,1586.34,0.00011711,2]
[403191106,1769261196912,1566.15,0.00011716,2]
[403191127,1769261255901,800.0,0.00011968,2]
[403191128,1769261260137,384.30681391,0.00011891,2]
[403191131,1769261265120,385.79666785,0.00011954,2]
[403191132,1769261269613,269.41821725,0.00011853,2]
[403191133,1769261270032,3726.54849535,0.00012,5]
[403191134,1769261271433,500.0,0.00011853,2]
[403191135,1769261271589,500.0,0.0001199,2]
[403191136,1769261275972,1546.22,0.00011701,2]
[403191137,1769261283445,425.06140968,0.00010618,2]
[403191138,1769261289785,188.36152107,0.0001,2]
[403191139,1769261302837,10023.67794619,5e-06,2]
[403191140,1769261311451,170.8725294,0.00011045,2]
[403191141,1769261313131,5154.66727389,0.0001,2]
[403191142,1769261313720,2389.77736106,0.0001,2]
[403191143,1769261318600,150.93513547,0.00011,2]
[403191144,1769261357372,1526.54,0.00011551,2]
[403191145,1769261369688,1000.0,0.00012,2]
[403191146,1769261374821,469.1506036,0.00012,2]
[403191147,1769261376163,800.0,0.00011856,2]
[403191149,1769261417225,151.0,0.00012,2]
[403191150,1769261418374,151.0,0.00012,2]
[403191151,1769261419396,151.0,0.00012,2]
[403191152,1769261420445,151.0,0.00012,2]
[403191153,1769261421480,245.63081815,0.00012,2]
[403191174,1769261434593,150.0,0.00011853,2]
[403191175,1769261434736,282.25572152,0.0001199,2]
[403191176,1769261435899,150.0,0.00011853,2]
[403191177,1769261435943,150.0,0.00011853,2]
[403191178,1769261436058,150.0,0.0001199,2]
[403191179,1769261436119,253.37170978,0.0001199,2]
[403191180,1769261436548,500.0,0.00011853,2]
[403191181,1769261436722,500.0,0.0001199,2]
[403191182,1769261436855,500.0,0.00011853,2]
[403191183,1769261437009,500.0,0.0001199,2]
[403191184,1769261437346,1507.11,0.00011538,2]
[403191188,1769261437948,500.0,0.00011853,2]
[403191189,1769261437986,500.0,0.00011853,2]
[403191191,1769261438022,500.0,0.0001199,2]
[403191195,1769261438077,501.97985973,0.0001199,2]
[403191196,1769261438159,-1200.0,0.00012017,2]
[403191197,1769261438168,-500.0,0.00012018,2]
[403191198,1769261438178,-500.0,0.00012018,2]
[403191199,1769261438187,-500.0,0.00012018,2]
[403191200,1769261438197,-500.0,0.00012018,2]
[403191201,1769261438206,-500.0,0.00012018,2]
[403191202,1769261438216,-500.0,0.00012018,2]
[403191203,1769261438225,-203.91429825,0.00012018,2]
[403191204,1769261438235,-500.0,0.00012018,2]
[403191205,1769261438244,-296.81957514,0.00012018,2]
[403191206,1769261438253,-500.0,0.00012018,2]
[403191207,1769261438263,-500.0,0.00012018,2]
[403191208,1769261438273,-500.0,0.00012018,2]
[403191209,1769261438282,-500.0,0.00012018,2]
[403191210,1769261438291,-254.18062597,0.00012018,2]
[403191211,1769261438301,-500.0,0.00012018,2]
[403191212,1769261438310,-500.0,0.00012018,2]
[403191213,1769261438320,-500.0,0.00012018,2]
[403191214,1769261438329,-500.0,0.00012018,2]
[403191215,1769261438339,-500.0,0.00012018,2]
[403191216,1769261438348,-500.0,0.00012018,2]
[403191217,1769261438358,-500.0,0.00012018,2]
[403191218,1769261438367,-500.0,0.00012018,2]
[403191219,1769261438376,-500.0,0.00012018,2]
[403191220,1769261438385,-500.0,0.00012018,2]
[403191221,1769261438394,-500.0,0.00012018,2]
[403191222,1769261438403,-500.0,0.00012018,2]
[403191223,1769261438412,-284.17432635,0.00012018,2]
[403191224,1769261438689,150.0,0.00011853,2]
[403191225,1769261438846,150.0,0.0001199,2]
[403191226,1769261439123,500.0,0.00011853,2]
[403191227,1769261439170,150.0,0.00011853,2]
[403191228,1769261439297,500.0,0.0001199,2]
[403191237,1769261440102,150.0,0.0001199,2]
[403191269,1769261440385,-215.82567365,0.00012018,2]
[403191271,1769261440394,-500.0,0.00012018,2]
[403191273,1769261440403,-500.0,0.00012018,2]
[403191275,1769261440412,-500.0,0.00012018,2]
[403191277,1769261440421,-500.0,0.00012018,2]
[403191279,1769261440430,-500.0,0.00012018,2]
[403191281,1769261440438,-165.68194327,0.00012018,2]
[403191283,1769261440449,-334.31805673,0.00012018,2]
[403191285,1769261440458,-500.0,0.00012018,2]
[403191287,1769261440467,-300.0,0.00012018,2]
[403191289,1769261440476,-300.0,0.00012018,2]
[403191291,1769261440485,-300.0,0.00012018,2]
[403191293,1769261440493,-300.0,0.00012018,2]
[403191295,1769261440502,-589.0,0.00012018,2]
[403191297,1769261440511,-277.71210886,0.00012019,2]
[403191299,1769261440519,-508.45708429,0.0001202,2]
[403191301,1769261440528,-30429.56628767,0.00012021,2]
[403191304,1769261440546,-7339.11588742,0.00012021,2]
[403191584,1769261443345,-960.71644034,0.00012021,2]
[403191591,1769261443402,-669.25071439,0.00012021,2]
[403191603,1769261443513,-989.31614597,0.00012021,2]
[403191606,1769261443524,-757.50071439,0.00012021,2]
[403191873,1769261446350,-1502.95,0.00012021,2]
[403192001,1769261454691,4000.0,0.00012,2]
[403192003,1769261469825,950.01,0.00012,2]
[403192005,1769261502587,387.588,0.0001178,2]
[403192006,1769261517613,1487.93,8.613e-05,2]
[403192007,1769261518030,2975.86,9.396e-05,2]
[403192008,1769261518430,4463.79,0.00010179,2]
[403192009,1769261518834,5951.72,0.00010962,2]
[403192010,1769261519293,7439.66,0.00011745,2]
[403192013,1769261585350,500.0,0.00011853,2]
[403192014,1769261585522,500.0,0.0001199,2]
[403192015,1769261595471,1203.87,0.00011537,2]
[403192018,1769261631500,683.10614583,0.00011617,2]
[403192019,1769261636541,2732.42458331,0.00011617,2]
[403192021,1769261641607,6141.80735713,0.00011617,2]
[403192038,1769261676914,19386.632129,0.00011073,2]
[403192042,1769261680638,1188.55,0.00011534,2]
[403192067,1769261745128,200.44503265,0.00011825,2]
[403192069,1769261745895,150.0,0.00011825,2]
[403192070,1769261746000,150.0,0.00011825,2]
[403192071,1769261746047,150.0,0.00011962,2]
[403192072,1769261746175,150.0,0.00011962,2]
[403192074,1769261747050,150.0,0.00011825,2]
[403192075,1769261747131,150.0,0.00011825,2]
[403192076,1769261747162,150.0,0.00011825,2]
[403192077,1769261747219,150.0,0.00011962,2]
[403192078,1769261747271,273.92590858,0.00011962,2]
[403192079,1769261747322,150.81623099,0.00011962,2]
[403192085,1769261761541,1173.42,0.0001154,2]
[403192088,1769261793763,898.86347424,0.00011617,2]
[403192090,1769261796828,3591.85844306,0.00011617,2]
[403192123,1769261848507,1158.49,0.00011541,2]
[403192134,1769261884569,218.55,3.436e-05,2]
[403192136,1769261884854,218.55,3.436e-05,2]
[403192137,1769261885113,218.53,3.436e-05,2]
[403192151,1769261911125,500.0,0.000118,2]
[403192152,1769261911591,500.0,0.00011937,2]
[403192155,1769261916261,800.0,0.00011791,2]
[403192158,1769261927576,1143.74,0.00011531,2]
[403192159,1769261934496,635.26567171,0.00011617,2]
[403192160,1769261937417,2541.06268684,0.00011617,2]
[403192161,1769261940062,5711.67365435,0.00011617,2]
[403192167,1769261990803,553887.73858107,0.0001192,2]
[403192168,1769261998767,-4677.79031934,0.0001192,2]
[403192169,1769261998850,-10000.01,0.0001192,2]
[403192170,1769261998933,-300.00328744,0.0001192,2]
[403192171,1769261998976,-10000.01,0.0001192,2]
[403192172,1769261999113,-10000.01,0.0001192,2]
[403192173,1769261999237,-10000.01,0.0001192,2]
[403192174,1769261999378,-10000.01,0.0001192,2]
[403192175,1769261999530,-10000.01,0.0001192,2]
[403192176,1769261999652,-10000.01,0.0001192,2]
[403192177,1769262001116,-10000.01,0.0001192,2]
[403192178,1769262001283,-300.0,0.00011919,2]
[403192179,1769262001318,-9400.01,0.0001192,2]
[403192182,1769262005023,-175.48463812,0.00011919,2]
[403192183,1769262006547,1129.19,0.00011633,2]
[403192184,1769262007482,-124.51536188,0.00011919,2]
[403192185,1769262007512,-300.0,0.00011919,2]
[403192186,1769262007541,-588.0,0.00011919,2]
[403192187,1769262007612,-7974.97927624,0.0001192,2]
[403192188,1769262007641,-10000.01,0.0001192,2]
[403192189,1769262007845,-10000.01,0.0001192,2]
[403192190,1769262007973,-10000.01,0.0001192,2]
[403192191,1769262008134,-10000.01,0.0001192,2]
[403192192,1769262008172,-233.98461083,0.0001192,2]
[403192193,1769262008369,-10000.01,0.0001192,2]
[403192194,1769262008526,-1200.0,0.00011919,2]
[403192195,1769262008564,-7600.01,0.0001192,2]
[403192196,1769262012582,4870.10242614,0.00011917,2]
[403192197,1769262013079,-184.43475781,0.0001192,2]
[403192198,1769262015449,-419.66449406,0.0001192,2]
[403192199,1769262016387,-10000.01,0.0001192,2]
[403192200,1769262016580,-10000.01,0.0001192,2]
[403192201,1769262016687,-10000.01,0.0001192,2]
[403192202,1769262016986,-499.87,0.0001192,2]
[403192203,1769262018967,-211.85000003,0.0001192,2]
[403192204,1769262020284,5000.0,0.00011917,2]
[403192205,1769262021251,-424.29204605,0.0001192,2]
[403192206,1769262026179,-536.95213082,0.0001192,2]
[403192207,1769262026599,250.0,0.00010892,2]
[403192208,1769262028215,-279.52155573,0.0001192,2]
[403192209,1769262028956,5000.0,0.00011917,2]
[403192210,1769262030702,-261.98346765,0.0001192,2]
[403192211,1769262031696,-10000.01,0.0001192,2]
[403192213,1769262034146,-355.919959,0.00011919,2]
[403192214,1769262034171,-126.33862556,0.00011919,2]
[403192215,1769262034664,-188.36774913,0.00011919,2]
[403192216,1769262034699,-500.0,0.00011919,2]
[403192217,1769262034735,-500.0,0.00011919,2]
[403192218,1769262034766,-500.0,0.00011919,2]
[403192219,1769262034800,-500.0,0.00011919,2]
[403192220,1769262034832,-500.0,0.00011919,2]
[403192221,1769262034864,-455.07130295,0.00011919,2]
[403192222,1769262034921,-500.0,0.00011919,2]
[403192223,1769262034958,-500.0,0.00011919,2]
[403192224,1769262034994,-300.0,0.00011919,2]
[403192225,1769262035231,-1113.13189584,0.0001192,2]
[403192226,1769262035270,-10000.01,0.0001192,2]
[403192227,1769262035290,-10000.01,0.0001192,2]
[403192228,1769262035333,-10000.01,0.0001192,2]
[403192229,1769262035352,-10000.01,0.0001192,2]
[403192230,1769262035390,-10000.01,0.0001192,2]
[403192231,1769262035667,-10000.01,0.0001192,2]
[403192232,1769262035784,-10000.01,0.0001192,2]
[403192233,1769262036720,5000.0,0.00011917,2]
[403192234,1769262037841,-182.37350716,0.0001192,2]
[403192235,1769262039313,-365.98891021,0.0001192,2]
[403192236,1769262042673,-330.11884064,0.0001192,2]
[403192237,1769262044009,150.0,0.000118,2]
[403192238,1769262044331,220.18654939,0.000118,2]
[403192239,1769262044685,5000.0,0.00011917,2]
[403192240,1769262045021,150.0,0.000118,2]
[403192241,1769262045763,150.0,0.000118,2]
[403192242,1769262046791,164.18010503,0.000118,2]
[403192243,1769262046904,150.0,0.000118,2]
[403192244,1769262047265,500.0,0.000118,2]
[403192245,1769262049812,-664.75403121,0.00011918,2]
[403192246,1769262049857,-8670.50193758,0.0001192,2]
[403192247,1769262053110,5000.0,0.00011917,2]
[403192248,1769262053128,-10000.01,0.0001192,2]
[403192249,1769262053144,-10000.01,0.0001192,2]
[403192250,1769262053177,-10000.01,0.0001192,2]
[403192251,1769262053336,-10000.01,0.0001192,2]
[403192252,1769262053453,-10000.01,0.0001192,2]
[403192253,1769262055880,-10000.01,0.0001192,2]
[403192254,1769262061072,5000.0,0.00011917,2]
[403192255,1769262066583,10000.0,0.00011033,2]
[403192256,1769262068905,0.01,0.00011917,2]
[403192257,1769262071079,-4999.99,0.00011917,2]
[403192258,1769262077009,0.03,0.00011917,2]
[403192259,1769262077035,4999.97,0.00011917,2]
[403192260,1769262084836,5000.0,0.00011917,2]
[403192261,1769262086790,1416.92,0.00011627,2]
[403192264,1769262092810,5000.0,0.00011917,2]
[403192265,1769262100566,5000.0,0.00011917,2]
[403192266,1769262101972,2344.17,0.0001191,2]
[403192267,1769262108742,5000.0,0.00011917,2]
[403192268,1769262116515,5000.0,0.00011917,2]
[403192270,1769262125139,5000.0,0.00011917,2]
[403192271,1769262132854,5000.0,0.00011917,2]
[403192273,1769262140833,3223.33334952,0.00011917,2]
[403192274,1769262148576,5000.0,0.00011917,2]
[403192275,1769262156592,5000.0,0.00011917,2]
[403192277,1769262166975,1398.89,0.00011626,2]
[403192278,1769262172253,5000.0,0.00011917,2]
[403192279,1769262180129,4968.39091057,0.00011917,2]
[403192280,1769262196314,5000.0,0.00011917,2]
[403192281,1769262218993,5000.0,0.00011917,2]
[403192287,1769262234645,441.52291575,0.00011617,2]
[403192288,1769262242173,5000.0,0.00011917,2]
[403192289,1769262246964,1381.08,0.0001163,2]
[403192290,1769262264025,500.0,0.000118,2]
[403192291,1769262264054,5000.0,0.00011917,2]
[403192298,1769262286844,5000.0,0.00011917,2]
[403192299,1769262301258,194.0,0.00011917,2]
[403192301,1769262302167,300.0,0.00011917,2]
[403192302,1769262302759,300.0,0.00011917,2]
[403192303,1769262302904,300.0,0.00011917,2]
[403192305,1769262308407,1200.0,0.00011917,2]
[403192306,1769262308438,1957.856,0.00011913,2]
[403192307,1769262309532,5000.0,0.00011917,2]
[403192308,1769262311243,289.41339882,0.00011913,2]
[403192309,1769262317280,187.78006525,0.00011913,2]
[403192310,1769262317894,194.72792766,0.00011913,2]
[403192311,1769262318074,187.78006525,0.00011913,2]
[403192312,1769262318513,201.93286099,0.00011913,2]
[403192313,1769262319139,209.40437684,0.00011913,2]
[403192314,1769262319760,217.15233878,0.00011913,2]
[403192315,1769262320591,225.18697532,0.00011913,2]
[403192316,1769262320814,2487.15318209,0.00011913,2]
[403192317,1769262321001,233.51889341,0.00011913,2]
[403192318,1769262321618,242.15909246,0.00011913,2]
[403192319,1769262322063,151.0,0.00011913,2]
[403192320,1769262322363,251.11897888,0.00011913,2]
[403192322,1769262324701,151.0,0.00011913,2]
[403192323,1769262325534,151.0,0.00011913,2]
[403192324,1769262325906,151.0,0.00011913,2]
[403192325,1769262326952,500.0,0.00011913,2]
[403192326,1769262327167,151.0,0.00011913,2]
[403192327,1769262327359,260.4103811,0.00011913,2]
[403192328,1769262327582,500.0,0.00011913,2]
[403192329,1769262327787,151.0,0.00011913,2]
[403192330,1769262327947,270.0455652,0.00011913,2]
[403192331,1769262328214,500.0,0.00011913,2]
[403192332,1769262328421,151.0,0.00011913,2]
[403192333,1769262328591,280.03725112,0.00011913,2]
[403192334,1769262328864,500.0,0.00011913,2]
[403192335,1769262329173,151.0,0.00011913,2]
[403192336,1769262329248,290.39862941,0.00011913,2]
[403192337,1769262329502,500.0,0.00011913,2]
[403192338,1769262329818,238.51246012,0.00011913,2]
[403192339,1769262329910,301.1433787,0.00011913,2]
[403192340,1769262330212,500.0,0.00011913,2]
[403192341,1769262330786,1732.80549714,0.00011913,2]
[403192342,1769262330879,500.0,0.00011913,2]
[403192343,1769262331492,5000.0,0.00011917,2]
[403192344,1769262331527,500.0,0.00011913,2]
[403192345,1769262331615,1363.5,0.00011689,2]
[403192346,1769262332119,500.0,0.00011913,2]
[403192347,1769262332745,500.0,0.00011913,2]
[403192348,1769262332925,514.84070869,0.00011913,2]
[403192349,1769262333369,500.0,0.00011913,2]
[403192350,1769262334014,500.0,0.00011913,2]
[403192351,1769262334632,500.0,0.00011913,2]
[403192352,1769262335268,500.0,0.00011913,2]
[403192353,1769262354359,5000.0,0.00011917,2]
[403192354,1769262361353,34492.1052547,0.00010936,2]
[403192356,1769262362951,300.0,0.00011917,2]
[403192358,1769262377237,5000.0,0.00011917,2]
[403192359,1769262399559,5000.0,0.00011917,2]
[403192360,1769262413200,1346.15,0.00011692,2]
[403192361,1769262422270,5000.0,0.00011917,2]
[403192362,1769262422695,300.0,0.00011917,2]
[403192363,1769262445755,5000.0,0.00011917,2]
[403192365,1769262468859,5000.0,0.00011917,2]
[403192367,1769262482278,300.0,0.00011917,2]
[403192368,1769262491770,5000.0,0.00011917,2]
[403192369,1769262493999,1329.02,0.00011702,2]
[403192372,1769262508402,151.0,0.000116,2]
[403192373,1769262508705,151.0,0.000113,2]
[403192374,1769262511661,249.1439713,0.00011917,2]
[403192375,1769262512774,500.0,0.00011917,2]
[403192376,1769262512804,217.23014477,0.00011917,2]
[403192377,1769262512833,500.0,0.00011917,2]
[403192378,1769262512873,500.0,0.00011917,2]
[403192379,1769262512903,500.0,0.00011917,2]
[403192380,1769262512940,500.0,0.00011917,2]
[403192381,1769262512969,500.0,0.00011917,2]
[403192382,1769262513003,500.0,0.00011917,2]
[403192383,1769262513044,500.0,0.00011917,2]
[403192384,1769262513077,500.0,0.00011917,2]
[403192385,1769262513115,500.0,0.00011917,2]
[403192386,1769262513152,371.39280273,0.00011917,2]
[403192387,1769262513190,500.0,0.00011917,2]
[403192388,1769262513229,500.0,0.00011917,2]
[403192389,1769262513263,500.0,0.00011917,2]
[403192390,1769262514351,5000.0,0.00011917,2]
[403192391,1769262537372,5000.0,0.00011917,2]
[403192393,1769262542931,300.0,0.00011917,2]
[403192394,1769262559698,5000.0,0.00011917,2]
[403192398,1769262573212,1312.1,0.0001171,2]
[403192403,1769262581957,5000.0,0.00011917,2]
[403192405,1769262602214,300.0,0.00011917,2]
[403192406,1769262602475,300.0,0.00011917,2]
[403192407,1769262604407,354.52,5e-05,2]
[403192408,1769262604532,5000.0,0.00011917,2]
[403192409,1769262604966,354.52,5.1e-05,2]
[403192410,1769262605464,354.52,5.2e-05,2]
[403192411,1769262606042,354.52,5.3e-05,2]
[403192412,1769262606857,354.52,5.4e-05,2]
[403192413,1769262607033,354.52,5.5e-05,2]
[403192414,1769262607662,354.52,5.6e-05,2]
[403192415,1769262608256,354.52,5.7e-05,2]
[403192416,1769262608669,1200.0,0.00011917,2]
[403192417,1769262608724,354.52,5.8e-05,2]
[403192418,1769262609196,354.52,5.9e-05,2]
[403192419,1769262609765,354.52,6e-05,2]
[403192420,1769262610344,354.52,6.1e-05,2]
[403192421,1769262610978,354.52,6.2e-05,2]
[403192422,1769262611459,354.52,6.3e-05,2]
[403192423,1769262612006,151.0,0.00011913,2]
[403192424,1769262612034,354.52,6.4e-05,2]
[403192425,1769262612302,2487.15318209,0.00011913,2]
[403192426,1769262612513,354.52,6.5e-05,2]
[403192427,1769262612616,187.78006525,0.00011913,2]
[403192428,1769262613071,354.52,6.6e-05,2]
[403192429,1769262613749,500.0,0.00011914,2]
[403192430,1769262614160,354.52,6.7e-05,2]
[403192431,1769262614741,354.52,6.8e-05,2]
[403192432,1769262614931,187.78006525,0.00011913,2]
[403192433,1769262615318,354.52,6.9e-05,2]
[403192434,1769262615450,500.0,0.00011913,2]
[403192435,1769262615549,194.72792766,0.00011913,2]
[403192436,1769262615877,354.52,7e-05,2]
[403192437,1769262616087,500.0,0.00011913,2]
[403192438,1769262616187,201.93286099,0.00011913,2]
[403192439,1769262616451,354.52,7.1e-05,2]
[403192440,1769262616743,500.0,0.00011913,2]
[403192441,1769262616814,209.40437684,0.00011913,2]
[403192442,1769262617368,354.52,7.2e-05,2]
[403192443,1769262617465,500.0,0.00011913,2]
[403192444,1769262617512,217.15233878,0.00011913,2]
[403192445,1769262617646,354.52,7.3e-05,2]
[403192446,1769262617980,500.0,0.00011913,2]
[403192447,1769262618132,225.18697532,0.00011913,2]
[403192448,1769262618273,354.52,7.4e-05,2]
[403192449,1769262618596,500.0,0.00011913,2]
[403192450,1769262618687,233.51889341,0.00011913,2]
[403192451,1769262618896,354.52,7.6e-05,2]
[403192452,1769262619196,500.0,0.00011913,2]
[403192453,1769262619305,242.15909246,0.00011913,2]
[403192454,1769262619466,354.52,7.7e-05,2]
[403192455,1769262619812,500.0,0.00011913,2]
[403192456,1769262619916,251.11897888,0.00011913,2]
[403192457,1769262619963,354.52,7.8e-05,2]
[403192458,1769262620435,500.0,0.00011913,2]
[403192459,1769262620520,354.52,7.9e-05,2]
[403192460,1769262620580,260.4103811,0.00011913,2]
[403192461,1769262621044,500.0,0.00011913,2]
[403192462,1769262621119,354.52,8e-05,2]
[403192463,1769262621184,270.0455652,0.00011913,2]
[403192464,1769262621707,354.52,8.1e-05,2]
[403192465,1769262621738,500.0,0.00011913,2]
[403192466,1769262621827,280.03725112,0.00011913,2]
[403192467,1769262622302,354.52,8.2e-05,2]
[403192468,1769262622331,500.0,0.00011913,2]
[403192469,1769262622507,290.39862941,0.00011913,2]
[403192470,1769262622932,354.52,8.3e-05,2]
[403192471,1769262623075,500.0,0.00011913,2]
[403192472,1769262623114,301.1433787,0.00011913,2]
[403192473,1769262623607,354.52,8.4e-05,2]
[403192474,1769262623698,500.0,0.00011913,2]
[403192475,1769262624204,354.52,8.5e-05,2]
[403192476,1769262624675,354.52,8.6e-05,2]
[403192477,1769262625239,354.52,8.7e-05,2]
[403192478,1769262625804,354.52,8.8e-05,2]
[403192479,1769262626944,5000.0,0.00011917,2]
[403192480,1769262627683,354.52,8.9e-05,2]
[403192481,1769262627748,514.84070869,0.00011913,2]
[403192482,1769262628097,354.52,9e-05,2]
[403192483,1769262628654,354.52,9.1e-05,2]
[403192484,1769262629246,354.52,9.2e-05,2]
[403192485,1769262629840,354.52,9.3e-05,2]
[403192486,1769262630305,354.52,9.4e-05,2]
[403192487,1769262630874,354.52,9.5e-05,2]
[403192488,1769262631455,354.52,9.6e-05,2]
[403192489,1769262632021,1957.856,0.00011913,2]
[403192490,1769262632066,354.52,9.7e-05,2]
[403192503,1769262632279,-663.56307793,0.00011918,2]
[403192505,1769262632290,-13222.77667624,0.00011918,2]
[403192511,1769262632339,-334.45923056,0.00011918,2]
[403192540,1769262632594,354.52,9.8e-05,2]
[403192568,1769262633100,354.52,9.9e-05,2]
[403192572,1769262635062,354.47,5e-05,2]
[403192581,1769262640668,-717.828,0.00011918,2]
[403192582,1769262640718,-2370.56842586,0.00011918,2]
[403192583,1769262640945,-3e-08,0.00011918,2]
[403193421,1769262649184,5000.0,0.00011917,2]
[403193592,1769262653666,1295.4,0.00011491,2]
[403193633,1769262671415,5000.0,0.00011917,2]
[403193638,1769262694445,5000.0,0.00011917,2]
[403193639,1769262716481,5000.0,0.00011917,2]
[403193640,1769262735813,1278.92,0.00011467,2]
[403193641,1769262738795,5000.0,0.00011917,2]
[403193642,1769262761049,5000.0,0.00011917,2]
[403193643,1769262785642,1641.62477724,0.00011917,2]
[403193644,1769262794712,-272.15786668,0.00011918,2]
[403193645,1769262794733,-43.7991403,0.00011918,2]
[403193646,1769262815249,1262.64,0.00011421,2]
[403193647,1769262849712,211.874359,0.00011585,2]
[403193648,1769262869222,-153.64747658,0.00011918,2]
[403193649,1769262871773,-260.64252342,0.00011918,2]
[403193650,1769262873712,-59.71709281,0.00011918,2]